[Event "FIDE World Rapid Chess Championship 2021"]
[White "Gukesh, D"]
[Black "Theodorou, Nikolas"]
[WhiteFideId "46616543"]
[BlackFideId "4262875"]
[WhiteElo "2050"]
[BlackElo "2559"]
[Result "1-0"]
[Round "08"]
[TimeControl "900+10"]
[Date "2021.12.27"]
[WhiteClock "0:00:43"]
[BlackClock "0:00:12"]

1. d4 {[%clk 0:15:00]}  Nf6 {[%clk 0:15:00]} 2. c4 {[%clk 0:15:00]}  g6 {[%clk 0:15:00]} 3. Nc3 {[%clk 0:15:00]}  Bg7 {[%clk 0:15:00]} 4. e4 {[%clk 0:15:00]}  d6 {[%clk 0:15:04]} 5. Nf3 {[%clk 0:14:32]}  O-O {[%clk 0:15:04]} 6. Be2 {[%clk 0:14:32]}  b6 {[%clk 0:15:04]} 7. O-O {[%clk 0:14:32]}  e5 {[%clk 0:15:04]} 8. Be3 {[%clk 0:14:32]}  Nc6 {[%clk 0:15:04]} 9. d5 {[%clk 0:14:32]}  Ne7 {[%clk 0:15:04]} 10. Ne1 {[%clk 0:14:32]}  Nd7 {[%clk 0:15:19]} 11. Nd3 {[%clk 0:12:30]}  f5 {[%clk 0:15:19]} 12. f3 {[%clk 0:12:30]}  f4 {[%clk 0:15:19]} 13. Bf2 {[%clk 0:12:30]}  g5 {[%clk 0:15:19]} 14. b4 {[%clk 0:12:30]}  h5 {[%clk 0:15:19]} 15. c5 {[%clk 0:12:30]}  Nf6 {[%clk 0:15:19]} 16. a4 {[%clk 0:11:28]}  Ng6 {[%clk 0:14:16]} 17. a5 {[%clk 0:10:20]}  bxc5 {[%clk 0:09:31]} 18. bxc5 {[%clk 0:07:53]}  g4 {[%clk 0:09:31]} 19. Nb4 {[%clk 0:07:53]}  g3 {[%clk 0:09:24]} 20. hxg3 {[%clk 0:05:36]}  fxg3 {[%clk 0:09:24]} 21. Bxg3 {[%clk 0:05:36]}  h4 {[%clk 0:09:24]} 22. Nc6 {[%clk 0:05:36]}  Qd7 {[%clk 0:09:24]} 23. Bh2 {[%clk 0:05:36]}  Bh6 {[%clk 0:09:24]} 24. Bb5 {[%clk 0:05:43]}  Be3+ {[%clk 0:07:44]} 25. Kh1 {[%clk 0:03:08]}  Nh5 {[%clk 0:07:44]} 26. Qe1 {[%clk 0:03:17]}  Ng3+ {[%clk 0:04:11]} 27. Bxg3 {[%clk 0:01:32]}  hxg3 {[%clk 0:04:11]} 28. Qxg3 {[%clk 0:01:32]}  Kg7 {[%clk 0:04:11]} 29. Rf2 {[%clk 0:01:32]}  Rh8+ {[%clk 0:04:11]} 30. Kg1 {[%clk 0:01:32]}  Bf4 {[%clk 0:04:11]} 31. Nxe5 {[%clk 0:01:32]}  Bxg3 {[%clk 0:03:44]} 32. Nxd7 {[%clk 0:01:20]}  Nf4 {[%clk 0:03:44]} 33. Ne2 {[%clk 0:01:20]}  Nxe2+ {[%clk 0:03:44]} 34. Rxe2 {[%clk 0:01:20]}  Rh6 {[%clk 0:03:44]} 35. Rea2 {[%clk 0:01:15]}  Bb7 {[%clk 0:01:14]} 36. Kf1 {[%clk 0:01:15]}  Rd8 {[%clk 0:01:14]} 37. c6 {[%clk 0:01:15]}  Bc8 {[%clk 0:01:14]} 38. Ke2 {[%clk 0:01:15]}  Bf4 {[%clk 0:01:14]} 39. Kd3 {[%clk 0:00:34]}  Kf7 {[%clk 0:00:29]} 40. Rb1 {[%clk 0:00:34]}  Rg8 {[%clk 0:00:29]} 41. Bc4 {[%clk 0:00:34]}  Ke7 {[%clk 0:00:29]} 42. a6 {[%clk 0:00:34]}  Rh2 {[%clk 0:00:29]} 43. Rb7 {[%clk 0:00:34]}  Rh1 {[%clk 0:00:29]} 44. Rxc7 {[%clk 0:00:34]}  Rd1+ {[%clk 0:00:29]} 45. Kc3 {[%clk 0:00:34]}  Kd8 {[%clk 0:00:29]} 46. Rxa7 {[%clk 0:00:34]}  Be3 {[%clk 0:00:29]} 47. Ra8 {[%clk 0:00:34]}  Bd4+ {[%clk 0:00:29]} 48. Kc2 {[%clk 0:00:34]}  Rg1 {[%clk 0:00:29]} 49. Kd3 {[%clk 0:00:34]}  Ba1 {[%clk 0:00:10]} 50. a7 {[%clk 0:00:43]}  Kc7 {[%clk 0:00:12]} 51. Rb8 {[%clk 0:00:43]}  Rd1+ {[%clk 0:00:12]} 52. Kc2 {[%clk 0:00:43]} 1-0


[Site "http://www.Chess.com"]

[Event "FIDE World Rapid Chess Championship 2021"]
[White "Mastrovasilis, Dimitrios"]
[Black "Artemiev, Vladislav"]
[WhiteFideId "4202694"]
[BlackFideId "24101605"]
[WhiteElo "2534"]
[BlackElo "2714"]
[Result "1/2-1/2"]
[Round "08"]
[TimeControl "900+10"]
[Date "2021.12.27"]
[WhiteClock "0:00:42"]
[BlackClock "0:00:23"]

1. e4 {[%clk 0:15:00]}  c5 {[%clk 0:15:00]} 2. Nf3 {[%clk 0:15:00]}  d6 {[%clk 0:15:00]} 3. Bb5+ {[%clk 0:15:00]}  Nd7 {[%clk 0:15:38]} 4. d4 {[%clk 0:15:33]}  cxd4 {[%clk 0:15:38]} 5. Qxd4 {[%clk 0:15:33]}  a6 {[%clk 0:15:38]} 6. Bxd7+ {[%clk 0:15:33]}  Bxd7 {[%clk 0:15:38]} 7. Nc3 {[%clk 0:15:33]}  e5 {[%clk 0:15:04]} 8. Qd3 {[%clk 0:15:05]}  h6 {[%clk 0:15:04]} 9. Nd2 {[%clk 0:15:05]}  Be6 {[%clk 0:15:04]} 10. Nc4 {[%clk 0:15:05]}  Rc8 {[%clk 0:15:04]} 11. Ne3 {[%clk 0:15:05]}  Nf6 {[%clk 0:15:04]} 12. O-O {[%clk 0:15:05]}  Be7 {[%clk 0:15:04]} 13. a4 {[%clk 0:15:05]}  O-O {[%clk 0:13:57]} 14. a5 {[%clk 0:14:22]}  Qc7 {[%clk 0:13:57]} 15. Rd1 {[%clk 0:13:33]}  Rfd8 {[%clk 0:12:28]} 16. Bd2 {[%clk 0:11:37]}  d5 {[%clk 0:11:44]} 17. Ncxd5 {[%clk 0:09:37]}  Bxd5 {[%clk 0:08:39]} 18. exd5 {[%clk 0:08:42]}  Bc5 {[%clk 0:07:16]} 19. Rac1 {[%clk 0:07:18]}  Bxe3 {[%clk 0:07:11]} 20. Qxe3 {[%clk 0:01:56]}  Nxd5 {[%clk 0:04:23]} 21. Qg3 {[%clk 0:01:56]}  Qd6 {[%clk 0:04:25]} 22. h3 {[%clk 0:01:56]}  Ne7 {[%clk 0:02:13]} 23. Qf3 {[%clk 0:01:37]}  Qc6 {[%clk 0:02:13]} 24. Qxc6 {[%clk 0:01:37]}  Nxc6 {[%clk 0:02:13]} 25. Kf1 {[%clk 0:00:18]}  f6 {[%clk 0:01:39]} 26. c4 {[%clk 0:00:18]}  Kf7 {[%clk 0:01:39]} 27. Bc3 {[%clk 0:00:18]}  Ke6 {[%clk 0:01:39]} 28. Ke2 {[%clk 0:00:18]}  Ne7 {[%clk 0:01:39]} 29. Rxd8 {[%clk 0:00:18]}  Rxd8 {[%clk 0:01:39]} 30. Ra1 {[%clk 0:00:13]}  h5 {[%clk 0:00:35]} 31. Ra3 {[%clk 0:00:13]}  Rc8 {[%clk 0:00:35]} 32. Rb3 {[%clk 0:00:13]}  Rc7 {[%clk 0:00:35]} 33. Rb6+ {[%clk 0:00:13]}  Kd7 {[%clk 0:00:35]} 34. Kd3 {[%clk 0:00:13]}  Nc8 {[%clk 0:00:35]} 35. Rb4 {[%clk 0:00:13]}  Ke6 {[%clk 0:00:35]} 36. h4 {[%clk 0:00:13]}  Rd7+ {[%clk 0:00:35]} 37. Ke2 {[%clk 0:00:13]}  Nd6 {[%clk 0:00:35]} 38. Rb6 {[%clk 0:00:13]}  Kf5 {[%clk 0:00:35]} 39. b3 {[%clk 0:00:13]}  Nc8 {[%clk 0:00:18]} 40. Rb4 {[%clk 0:00:36]}  Ne7 {[%clk 0:00:18]} 41. Rb6 {[%clk 0:00:36]}  Kg4 {[%clk 0:00:18]} 42. g3 {[%clk 0:00:36]}  Kf5 {[%clk 0:00:18]} 43. Bd2 {[%clk 0:00:36]}  Nc6 {[%clk 0:00:18]} 44. Bc3 {[%clk 0:00:36]}  g5 {[%clk 0:00:18]} 45. hxg5 {[%clk 0:00:36]}  fxg5 {[%clk 0:00:18]} 46. b4 {[%clk 0:00:36]}  Nd4+ {[%clk 0:00:18]} 47. Bxd4 {[%clk 0:00:36]}  exd4 {[%clk 0:00:18]} 48. Rh6 {[%clk 0:00:17]}  d3+ {[%clk 0:00:21]} 49. Kd2 {[%clk 0:00:17]}  Kg4 {[%clk 0:00:21]} 50. b5 {[%clk 0:00:17]}  axb5 {[%clk 0:00:21]} 51. cxb5 {[%clk 0:00:17]}  h4 {[%clk 0:00:21]} 52. gxh4 {[%clk 0:00:17]}  gxh4 {[%clk 0:00:21]} 53. a6 {[%clk 0:00:17]}  bxa6 {[%clk 0:00:21]} 54. bxa6 {[%clk 0:00:17]}  Kg5 {[%clk 0:00:21]} 55. Rh8 {[%clk 0:00:17]}  Ra7 {[%clk 0:00:21]} 56. Rg8+ {[%clk 0:00:17]}  Kf5 {[%clk 0:00:21]} 57. Rh8 {[%clk 0:00:17]}  Kg5 {[%clk 0:00:23]} 58. Rg8+ {[%clk 0:00:42]}  Kf4 {[%clk 0:00:23]} 59. Rh8 {[%clk 0:00:42]}  Kg4 {[%clk 0:00:23]} 60. Rg8+ {[%clk 0:00:42]}  Kf3 {[%clk 0:00:23]} 61. Rh8 {[%clk 0:00:42]}  Rxa6 {[%clk 0:00:23]} 62. Rxh4 {[%clk 0:00:42]}  Kxf2 {[%clk 0:00:23]} 63. Kxd3 {[%clk 0:00:42]} 1/2-1/2


[Site "http://www.Chess.com"]

[Event "FIDE World Rapid Chess Championship 2021"]
[White "Christiansen, Johan-Sebastian"]
[Black "Sargissian, Gabriel"]
[WhiteFideId "1512668"]
[BlackFideId "13300881"]
[WhiteElo "2522"]
[BlackElo "2693"]
[Result "1/2-1/2"]
[Round "08"]
[TimeControl "900+10"]
[Date "2021.12.27"]
[WhiteClock "0:00:51"]
[BlackClock "0:01:40"]

1. e4 {[%clk 0:15:00]}  e5 {[%clk 0:15:00]} 2. Nf3 {[%clk 0:15:00]}  Nc6 {[%clk 0:15:00]} 3. d4 {[%clk 0:15:00]}  exd4 {[%clk 0:15:00]} 4. Nxd4 {[%clk 0:15:00]}  Qf6 {[%clk 0:13:39]} 5. Be3 {[%clk 0:12:38]}  Bc5 {[%clk 0:13:39]} 6. c3 {[%clk 0:12:38]}  Nge7 {[%clk 0:13:39]} 7. Bc4 {[%clk 0:12:38]}  b6 {[%clk 0:13:39]} 8. O-O {[%clk 0:12:38]}  Bb7 {[%clk 0:13:39]} 9. Nb3 {[%clk 0:12:38]}  Ne5 {[%clk 0:13:39]} 10. Nxc5 {[%clk 0:12:11]}  bxc5 {[%clk 0:13:39]} 11. Nd2 {[%clk 0:07:32]}  Nxc4 {[%clk 0:09:45]} 12. Nxc4 {[%clk 0:07:32]}  Ba6 {[%clk 0:09:45]} 13. b3 {[%clk 0:07:32]}  Bxc4 {[%clk 0:09:45]} 14. bxc4 {[%clk 0:07:32]}  Qc6 {[%clk 0:09:45]} 15. e5 {[%clk 0:05:56]}  Nf5 {[%clk 0:08:44]} 16. Qd3 {[%clk 0:05:56]}  Nxe3 {[%clk 0:08:44]} 17. Qxe3 {[%clk 0:05:56]}  O-O {[%clk 0:08:44]} 18. Rfd1 {[%clk 0:05:56]}  Rfe8 {[%clk 0:08:44]} 19. Rd5 {[%clk 0:05:56]}  d6 {[%clk 0:08:44]} 20. Qf4 {[%clk 0:04:56]}  Rxe5 {[%clk 0:06:43]} 21. Rxe5 {[%clk 0:04:56]}  dxe5 {[%clk 0:06:43]} 22. Qxe5 {[%clk 0:04:56]}  Re8 {[%clk 0:06:43]} 23. Qg3 {[%clk 0:04:56]}  g6 {[%clk 0:06:11]} 24. h3 {[%clk 0:02:14]}  Re2 {[%clk 0:06:11]} 25. Rd1 {[%clk 0:02:14]}  Qf6 {[%clk 0:03:57]} 26. Rd5 {[%clk 0:01:50]}  Rxa2 {[%clk 0:03:57]} 27. Rxc5 {[%clk 0:01:50]}  c6 {[%clk 0:03:57]} 28. Qe3 {[%clk 0:01:50]}  Ra1+ {[%clk 0:01:40]} 29. Kh2 {[%clk 0:00:51]}  Qd6+ {[%clk 0:01:40]} 30. f4 {[%clk 0:00:51]}  Re1 {[%clk 0:01:40]} 31. Qd4 {[%clk 0:00:51]}  Qxd4 {[%clk 0:01:40]} 32. cxd4 {[%clk 0:00:51]}  Re4 {[%clk 0:01:40]} 33. Rxc6 {[%clk 0:00:51]}  Rxd4 {[%clk 0:01:40]} 34. Kg3 {[%clk 0:00:51]} 1/2-1/2


[Site "http://www.Chess.com"]

[Event "FIDE World Rapid Chess Championship 2021"]
[White "Mamedov, Rauf"]
[Black "Moroni, Luca Jr"]
[WhiteFideId "13401653"]
[BlackFideId "865834"]
[WhiteElo "2690"]
[BlackElo "2519"]
[Result "0-1"]
[Round "08"]
[TimeControl "900+10"]
[Date "2021.12.27"]
[WhiteClock "0:00:06"]
[BlackClock "0:00:45"]

1. e4 {[%clk 0:15:00]}  g6 {[%clk 0:15:00]} 2. d4 {[%clk 0:15:00]}  Bg7 {[%clk 0:15:00]} 3. Nf3 {[%clk 0:15:00]}  d6 {[%clk 0:15:00]} 4. Bc4 {[%clk 0:15:40]}  Nf6 {[%clk 0:16:01]} 5. Qe2 {[%clk 0:15:40]}  O-O {[%clk 0:16:01]} 6. e5 {[%clk 0:15:40]}  dxe5 {[%clk 0:16:01]} 7. dxe5 {[%clk 0:15:40]}  Nd5 {[%clk 0:16:01]} 8. h3 {[%clk 0:15:40]}  Be6 {[%clk 0:16:01]} 9. O-O {[%clk 0:15:40]}  Nd7 {[%clk 0:16:01]} 10. Bb3 {[%clk 0:14:53]}  Nc5 {[%clk 0:15:40]} 11. Rd1 {[%clk 0:14:53]}  Nxb3 {[%clk 0:15:40]} 12. axb3 {[%clk 0:14:53]}  Qc8 {[%clk 0:15:40]} 13. c4 {[%clk 0:14:53]}  Nb4 {[%clk 0:15:40]} 14. Nc3 {[%clk 0:14:53]}  c5 {[%clk 0:14:14]} 15. Bg5 {[%clk 0:13:50]}  Re8 {[%clk 0:14:14]} 16. Nd5 {[%clk 0:13:50]}  Bxd5 {[%clk 0:14:14]} 17. cxd5 {[%clk 0:13:50]}  Qf5 {[%clk 0:14:14]} 18. Rd2 {[%clk 0:07:48]}  h6 {[%clk 0:12:26]} 19. Bh4 {[%clk 0:04:58]}  b6 {[%clk 0:12:26]} 20. Bg3 {[%clk 0:04:58]}  Rad8 {[%clk 0:08:32]} 21. Qc4 {[%clk 0:06:29]}  a6 {[%clk 0:08:32]} 22. Rad1 {[%clk 0:06:29]}  g5 {[%clk 0:08:32]} 23. Re1 {[%clk 0:04:31]}  Rd7 {[%clk 0:08:11]} 24. Red1 {[%clk 0:02:23]}  Red8 {[%clk 0:07:44]} 25. d6 {[%clk 0:02:23]}  exd6 {[%clk 0:07:44]} 26. exd6 {[%clk 0:02:23]}  Re8 {[%clk 0:07:44]} 27. Re2 {[%clk 0:02:23]}  Rxe2 {[%clk 0:07:44]} 28. Qxe2 {[%clk 0:02:23]}  Qe6 {[%clk 0:07:44]} 29. Qd2 {[%clk 0:02:23]}  f5 {[%clk 0:07:53]} 30. Re1 {[%clk 0:01:12]}  Qd5 {[%clk 0:07:53]} 31. Re8+ {[%clk 0:01:12]}  Kf7 {[%clk 0:07:53]} 32. Qe2 {[%clk 0:01:12]}  f4 {[%clk 0:07:53]} 33. Re7+ {[%clk 0:00:32]}  Rxe7 {[%clk 0:06:29]} 34. Qxe7+ {[%clk 0:00:32]}  Kg8 {[%clk 0:06:29]} 35. d7 {[%clk 0:00:32]}  Nc6 {[%clk 0:06:29]} 36. Qe8+ {[%clk 0:00:32]}  Kh7 {[%clk 0:06:29]} 37. Bh2 {[%clk 0:00:32]}  Qd1+ {[%clk 0:05:29]} 38. Ne1 {[%clk 0:00:47]}  Ne5 {[%clk 0:05:29]} 39. Bxf4 {[%clk 0:00:47]}  Qxe1+ {[%clk 0:05:29]} 40. Kh2 {[%clk 0:00:47]}  gxf4 {[%clk 0:05:29]} 41. d8=Q {[%clk 0:00:47]}  Nf3+ {[%clk 0:05:29]} 42. gxf3 {[%clk 0:00:47]}  Qxf2+ {[%clk 0:05:29]} 43. Kh1 {[%clk 0:00:47]}  Qf1+ {[%clk 0:05:29]} 44. Kh2 {[%clk 0:00:47]}  Qf2+ {[%clk 0:05:29]} 45. Kh1 {[%clk 0:00:47]}  Qxf3+ {[%clk 0:05:29]} 46. Kg1 {[%clk 0:00:47]}  Bd4+ {[%clk 0:04:41]} 47. Qxd4 {[%clk 0:01:20]}  Qg3+ {[%clk 0:04:41]} 48. Kf1 {[%clk 0:01:20]}  cxd4 {[%clk 0:02:04]} 49. Qe4+ {[%clk 0:01:37]}  Qg6 {[%clk 0:02:04]} 50. Qxd4 {[%clk 0:01:37]}  Qb1+ {[%clk 0:02:04]} 51. Kf2 {[%clk 0:01:37]}  Qc2+ {[%clk 0:02:04]} 52. Kf3 {[%clk 0:01:37]}  Qxb3+ {[%clk 0:02:04]} 53. Kxf4 {[%clk 0:01:37]}  Qf7+ {[%clk 0:01:21]} 54. Ke3 {[%clk 0:00:59]}  b5 {[%clk 0:01:21]} 55. b4 {[%clk 0:00:59]}  Qc7 {[%clk 0:01:21]} 56. h4 {[%clk 0:00:59]}  Qg3+ {[%clk 0:01:21]} 57. Ke2 {[%clk 0:00:59]}  Kg6 {[%clk 0:01:21]} 58. Qb6+ {[%clk 0:00:06]}  Kh5 {[%clk 0:00:45]} 59. Qxa6 {[%clk 0:00:06]}  Qg4+ {[%clk 0:00:45]} 60. Ke3 {[%clk 0:00:06]}  Qxb4 {[%clk 0:00:45]} 61. Qf6 {[%clk 0:00:06]}  Qc5+ {[%clk 0:00:45]} 62. Kf3 {[%clk 0:00:06]}  Qd5+ {[%clk 0:00:45]} 63. Kf4 {[%clk 0:00:06]}  b4 {[%clk 0:00:45]} 64. Qg7 {[%clk 0:00:06]}  Qd2+ {[%clk 0:00:45]} 65. Ke4 {[%clk 0:00:06]}  Qe1+ {[%clk 0:00:45]} 66. Kd5 {[%clk 0:00:06]} 0-1


[Site "http://www.Chess.com"]

[Event "FIDE World Rapid Chess Championship 2021"]
[White "Nihal, Sarin"]
[Black "Demchenko, Anton"]
[WhiteFideId "25092340"]
[BlackFideId "4160258"]
[WhiteElo "2500"]
[BlackElo "2666"]
[Result "1/2-1/2"]
[Round "08"]
[TimeControl "900+10"]
[Date "2021.12.27"]
[WhiteClock "0:00:44"]
[BlackClock "0:01:19"]

1. d4 {[%clk 0:15:00]}  d5 {[%clk 0:15:00]} 2. Nf3 {[%clk 0:15:00]}  Nf6 {[%clk 0:15:00]} 3. c3 {[%clk 0:15:00]}  e6 {[%clk 0:13:56]} 4. Bg5 {[%clk 0:15:48]}  Be7 {[%clk 0:13:56]} 5. Nbd2 {[%clk 0:15:48]}  b6 {[%clk 0:13:56]} 6. e3 {[%clk 0:15:48]}  Bb7 {[%clk 0:13:56]} 7. Bd3 {[%clk 0:15:48]}  Nbd7 {[%clk 0:13:56]} 8. O-O {[%clk 0:15:48]}  O-O {[%clk 0:13:56]} 9. a4 {[%clk 0:15:48]}  a5 {[%clk 0:13:56]} 10. Qb1 {[%clk 0:15:48]}  h6 {[%clk 0:12:45]} 11. Bh4 {[%clk 0:15:48]}  Nh5 {[%clk 0:12:20]} 12. Bxe7 {[%clk 0:12:04]}  Qxe7 {[%clk 0:12:20]} 13. b4 {[%clk 0:12:04]}  e5 {[%clk 0:11:11]} 14. dxe5 {[%clk 0:10:48]}  Nxe5 {[%clk 0:11:11]} 15. Nxe5 {[%clk 0:10:48]}  Qxe5 {[%clk 0:11:11]} 16. Nf3 {[%clk 0:10:48]}  Qxc3 {[%clk 0:10:27]} 17. Rc1 {[%clk 0:10:02]}  Qxb4 {[%clk 0:07:20]} 18. Rxc7 {[%clk 0:10:02]}  Ba6 {[%clk 0:07:28]} 19. Bxa6 {[%clk 0:08:46]}  Rxa6 {[%clk 0:07:28]} 20. Qd3 {[%clk 0:08:46]}  Raa8 {[%clk 0:07:28]} 21. Qxd5 {[%clk 0:07:42]}  Nf6 {[%clk 0:04:36]} 22. Qc4 {[%clk 0:07:42]}  Qxc4 {[%clk 0:04:44]} 23. Rxc4 {[%clk 0:05:40]}  Rfc8 {[%clk 0:04:44]} 24. Rac1 {[%clk 0:05:40]}  Rxc4 {[%clk 0:04:44]} 25. Rxc4 {[%clk 0:05:40]}  Nd7 {[%clk 0:04:44]} 26. Kf1 {[%clk 0:04:24]}  Nc5 {[%clk 0:04:20]} 27. Ke2 {[%clk 0:04:24]}  Kf8 {[%clk 0:04:20]} 28. Nd2 {[%clk 0:04:24]}  Ke7 {[%clk 0:04:20]} 29. Ne4 {[%clk 0:04:24]}  Nxe4 {[%clk 0:03:53]} 30. Rxe4+ {[%clk 0:02:55]}  Kd6 {[%clk 0:03:53]} 31. Kd3 {[%clk 0:02:55]}  Rc8 {[%clk 0:03:53]} 32. Rd4+ {[%clk 0:02:39]}  Ke6 {[%clk 0:02:08]} 33. Re4+ {[%clk 0:02:39]}  Kd6 {[%clk 0:02:08]} 34. Rd4+ {[%clk 0:02:39]}  Ke6 {[%clk 0:02:08]} 35. Rc4 {[%clk 0:02:39]}  Rd8+ {[%clk 0:02:08]} 36. Ke2 {[%clk 0:02:39]}  Rb8 {[%clk 0:01:54]} 37. Kd3 {[%clk 0:02:39]}  b5 {[%clk 0:01:54]} 38. Rc6+ {[%clk 0:02:39]}  Kd7 {[%clk 0:01:54]} 39. axb5 {[%clk 0:02:39]}  Rxb5 {[%clk 0:01:54]} 40. Ra6 {[%clk 0:02:39]}  Rb2 {[%clk 0:01:54]} 41. Ra7+ {[%clk 0:02:39]}  Ke6 {[%clk 0:01:19]} 42. Ra6+ {[%clk 0:00:44]}  Ke7 {[%clk 0:01:19]} 43. Ra7+ {[%clk 0:00:44]}  Kf6 {[%clk 0:01:19]} 44. Ra6+ {[%clk 0:00:44]}  Ke7 {[%clk 0:01:19]} 45. Ra7+ {[%clk 0:00:44]}  Kf6 {[%clk 0:01:19]} 46. Ra6+ {[%clk 0:00:44]}  Ke7 {[%clk 0:01:19]} 47. Ra7+ {[%clk 0:00:44]}  Kf6 {[%clk 0:01:19]} 48. Ra6+ {[%clk 0:00:44]}  Ke5 {[%clk 0:01:19]} 1/2-1/2


[Site "http://www.Chess.com"]

[Event "FIDE World Rapid Chess Championship 2021"]
[White "Costachi, Mihnea"]
[Black "Riazantsev, Alexander"]
[WhiteFideId "1217518"]
[BlackFideId "4125029"]
[WhiteElo "2443"]
[BlackElo "2632"]
[Result "1/2-1/2"]
[Round "08"]
[TimeControl "900+10"]
[Date "2021.12.27"]
[WhiteClock "0:01:05"]
[BlackClock "0:01:29"]

1. d4 {[%clk 0:15:00]}  Nf6 {[%clk 0:15:00]} 2. c4 {[%clk 0:15:00]}  e6 {[%clk 0:15:00]} 3. Nf3 {[%clk 0:15:00]}  d5 {[%clk 0:15:00]} 4. Nc3 {[%clk 0:15:00]}  a6 {[%clk 0:15:00]} 5. cxd5 {[%clk 0:14:43]}  exd5 {[%clk 0:16:28]} 6. Bg5 {[%clk 0:14:43]}  c6 {[%clk 0:16:28]} 7. Qc2 {[%clk 0:14:43]}  Be6 {[%clk 0:16:28]} 8. e3 {[%clk 0:14:43]}  Nbd7 {[%clk 0:16:28]} 9. Bd3 {[%clk 0:14:43]}  Bd6 {[%clk 0:16:28]} 10. Bf4 {[%clk 0:14:43]}  Qc7 {[%clk 0:16:28]} 11. Bxd6 {[%clk 0:14:43]}  Qxd6 {[%clk 0:16:28]} 12. O-O {[%clk 0:14:43]}  h6 {[%clk 0:16:28]} 13. Na4 {[%clk 0:14:43]}  O-O {[%clk 0:16:28]} 14. Nc5 {[%clk 0:14:43]}  Nxc5 {[%clk 0:16:28]} 15. Qxc5 {[%clk 0:14:43]}  Qxc5 {[%clk 0:15:10]} 16. dxc5 {[%clk 0:13:58]}  a5 {[%clk 0:15:10]} 17. b3 {[%clk 0:13:58]}  Nd7 {[%clk 0:13:22]} 18. Rfc1 {[%clk 0:13:24]}  Rfe8 {[%clk 0:13:22]} 19. a3 {[%clk 0:13:24]}  Ra7 {[%clk 0:11:32]} 20. h3 {[%clk 0:10:58]}  g6 {[%clk 0:10:07]} 21. Kf1 {[%clk 0:10:58]}  Nf8 {[%clk 0:10:07]} 22. Nd4 {[%clk 0:10:58]}  Bd7 {[%clk 0:10:07]} 23. Ke2 {[%clk 0:10:58]}  Kg7 {[%clk 0:10:07]} 24. Kd2 {[%clk 0:10:58]}  Ne6 {[%clk 0:10:07]} 25. Rab1 {[%clk 0:10:06]}  Kf6 {[%clk 0:10:39]} 26. Rb2 {[%clk 0:10:06]}  Raa8 {[%clk 0:10:39]} 27. Ra2 {[%clk 0:08:41]}  Ra7 {[%clk 0:10:23]} 28. Rb2 {[%clk 0:08:41]}  Ng7 {[%clk 0:10:23]} 29. Ra2 {[%clk 0:08:41]}  Bf5 {[%clk 0:10:23]} 30. Bxf5 {[%clk 0:08:41]}  Nxf5 {[%clk 0:10:23]} 31. Nxf5 {[%clk 0:08:41]}  Kxf5 {[%clk 0:10:23]} 32. Kd3 {[%clk 0:08:41]}  h5 {[%clk 0:10:23]} 33. Rcc2 {[%clk 0:06:31]}  h4 {[%clk 0:09:54]} 34. Rcb2 {[%clk 0:06:31]}  g5 {[%clk 0:09:54]} 35. Kc3 {[%clk 0:06:31]}  Re4 {[%clk 0:09:54]} 36. Rd2 {[%clk 0:06:31]}  Kg6 {[%clk 0:08:31]} 37. Rd4 {[%clk 0:06:16]}  f5 {[%clk 0:08:31]} 38. Rxe4 {[%clk 0:06:16]}  fxe4 {[%clk 0:08:31]} 39. Kd4 {[%clk 0:06:16]}  Kf5 {[%clk 0:06:16]} 40. f3 {[%clk 0:06:07]}  exf3 {[%clk 0:06:16]} 41. gxf3 {[%clk 0:06:07]}  Ra8 {[%clk 0:06:16]} 42. Rg2 {[%clk 0:04:45]}  Re8 {[%clk 0:05:32]} 43. Rg4 {[%clk 0:04:45]}  Kf6 {[%clk 0:05:32]} 44. Kd3 {[%clk 0:04:45]}  Re5 {[%clk 0:03:48]} 45. f4 {[%clk 0:04:14]}  gxf4 {[%clk 0:02:23]} 46. Rxf4+ {[%clk 0:03:02]}  Kg5 {[%clk 0:02:23]} 47. Rg4+ {[%clk 0:03:02]}  Kh5 {[%clk 0:02:23]} 48. Rg7 {[%clk 0:03:02]}  Rf5 {[%clk 0:02:23]} 49. Ke2 {[%clk 0:03:02]}  Re5 {[%clk 0:02:23]} 50. Kd3 {[%clk 0:03:02]}  Rf5 {[%clk 0:02:23]} 51. Rxb7 {[%clk 0:01:57]}  Rf3 {[%clk 0:02:19]} 52. b4 {[%clk 0:01:57]}  axb4 {[%clk 0:02:19]} 53. axb4 {[%clk 0:01:57]}  Rxh3 {[%clk 0:02:19]} 54. b5 {[%clk 0:01:57]}  cxb5 {[%clk 0:02:19]} 55. c6 {[%clk 0:01:57]}  Rh1 {[%clk 0:02:19]} 56. Rxb5 {[%clk 0:01:57]}  Rc1 {[%clk 0:01:26]} 57. Rxd5+ {[%clk 0:01:14]}  Kg6 {[%clk 0:01:26]} 58. Rd6+ {[%clk 0:01:14]}  Kg5 {[%clk 0:01:26]} 59. Rd5+ {[%clk 0:01:14]}  Kg6 {[%clk 0:01:26]} 60. Rd4 {[%clk 0:01:14]}  h3 {[%clk 0:00:16]} 61. Rh4 {[%clk 0:00:46]}  Rxc6 {[%clk 0:00:16]} 62. Rxh3 {[%clk 0:00:46]}  Kf7 {[%clk 0:00:16]} 63. Rh7+ {[%clk 0:00:46]}  Ke8 {[%clk 0:00:16]} 64. e4 {[%clk 0:00:46]}  Ra6 {[%clk 0:00:16]} 65. Ke3 {[%clk 0:00:46]}  Ra5 {[%clk 0:00:16]} 66. Kf4 {[%clk 0:00:46]}  Ra4 {[%clk 0:00:16]} 67. Kf5 {[%clk 0:00:46]}  Ra5+ {[%clk 0:00:16]} 68. e5 {[%clk 0:00:46]}  Ra6 {[%clk 0:00:16]} 69. Rb7 {[%clk 0:00:46]}  Rc6 {[%clk 0:00:16]} 70. Ke4 {[%clk 0:00:46]}  Ra6 {[%clk 0:00:16]} 71. Rc7 {[%clk 0:00:46]}  Rb6 {[%clk 0:00:16]} 72. Kd5 {[%clk 0:00:46]}  Ra6 {[%clk 0:00:16]} 73. Rb7 {[%clk 0:00:46]}  Rh6 {[%clk 0:00:16]} 74. Rb1 {[%clk 0:01:05]}  Ke7 {[%clk 0:01:29]} 75. Rd1 {[%clk 0:01:05]}  Ra6 {[%clk 0:01:29]} 76. Ke4 {[%clk 0:01:05]}  Ke6 {[%clk 0:01:29]} 77. Rd4 {[%clk 0:01:05]}  Rb6 {[%clk 0:01:29]} 78. Rd6+ {[%clk 0:01:05]}  Rxd6 {[%clk 0:01:29]} 79. exd6 {[%clk 0:01:05]}  Kxd6 {[%clk 0:01:29]} 1/2-1/2


[Site "http://www.Chess.com"]